[Event "WSTCC-50 2024"]
[Site "Krakow"]
[Date "2024.07.04"]
[Round "3.6"]
[White "Emms, John M"]
[Black "Dishman, Stephen"]
[Result "1/2-1/2"]
[ECO "B13"]
[WhiteElo "2428"]
[BlackElo "2308"]
[Annotator "TA"]
[PlyCount "45"]
[EventDate "2024.07.01"]
[EventType "team-tourn"]
[EventCountry "POL"]
[SourceTitle "playchess.com"]
[Source "ChessBase"]
[SourceQuality "1"]
[TimeControl "40/5400+30:1800+30"]

{[%evp 20,45,20,12,15,9,7,7,16,0,0,0,0,0,0,0,7,7,10,7,6,6,7,5,0,0,0,0]} 1. e4 {[%emt 0:00:14]} c6 {[%emt 0:00:09]} 2. d4 {[%emt 0:00:21]} d5 {[%emt 0:00:07]} 3. exd5 {[%emt 0:00:29]} cxd5 {[%emt 0:00:10]} 4. Bd3 {[%emt 0:00:19]} Nf6 {[%emt 0:00:14]} 5. Nf3 {[%emt 0:01:00]} Bg4 {[%emt 0:01:09]} 6. c3 {[%emt 0:00:51]} Nc6 {[%emt 0:03:14]} 7. Bf4 {[%emt 0:00:17]} e6 {[%emt 0:00:53]} 8. Nbd2 {[%emt 0:00:24]} Bd6 {[%emt 0:00:30]} 9. Bxd6 {[%emt 0:00:17]} Qxd6 {[%emt 0:00:06]} 10. O-O {[%emt 0:00:07]} O-O {[%emt 0:00:22]} 11. Re1 {[%emt 0:00:13] The position is equal.} Ne7 {[%emt 0:00:32]} 12. Qc2 {[%emt 0:01:43]} Bf5 {[%emt 0:01:51]} 13. Ne5 {[%emt 0:02:57]} Rfc8 {[%emt 0:08:31]} 14. Bxf5 {[%emt 0:17:30]} Nxf5 {[%emt 0:00:55]} 15. Ndf3 {[%emt 0:00:33]} Ne4 {[%emt 0:05:01][%cal Of5d4] Repels Ng5} 16. Qe2 {[%emt 0:03:20]} a5 {[%emt 0:08:32]} 17. a3 {[%emt 0:07:27]} Rc7 {[%emt 0:11:57]} 18. Nd2 {[%emt 0:14:34]} Nxd2 {[%emt 0:01:23]} 19. Qxd2 {[%emt 0:00:35]} Qe7 {[%emt 0:04:05]} 20. Nd3 {[%emt 0:05:57]} Qh4 {[%emt 0:01:49]} 21. Re2 {[%emt 0:02:01]} Nd6 {[%emt 0:01:28]} 22. f3 {[%emt 0:04:10]} Nc4 {[%emt 0:01:10]} 23. Qe1 {[%emt 0:11:21] Not much happened in this game.   Weighted Error Value: White=0.02 (flawless) /Black=0.02 (flawless) .  OK:         	White=4     	Black=4} 1/2-1/2

[Event "WSTCC-50 2024"]
[Site "Krakow"]
[Date "2024.07.04"]
[Round "3.6"]
[White "Cummings, David H."]
[Black "Ograbek, Grzegorz"]
[Result "1-0"]
[ECO "A41"]
[WhiteElo "2314"]
[BlackElo "2063"]
[Annotator "TA"]
[PlyCount "50"]
[EventDate "2024.07.01"]
[EventType "team-tourn"]
[EventCountry "POL"]
[SourceTitle "playchess.com"]
[Source "ChessBase"]
[SourceQuality "1"]
[TimeControl "40/5400+30:1800+30"]

{[%evp 14,50,31,16,32,29,22,0,22,13,16,-4,5,-17,25,32,34,26,114,121,119,102,150,154,172,168,185,117,130,126,123,120,145,147,133,123,198,211,401]} 1. c4 {[%emt 0:00:07]} d6 {[%emt 0:00:15]} 2. Nc3 {[%emt 0:00:19]} g6 {[%emt 0:00:22]} 3. d4 {[%emt 0:00:15]} Bg7 {[%emt 0:00:07]} 4. Nf3 {[%emt 0:00:48]} e5 {[%emt 0:00:25]} 5. dxe5 {[%emt 0:03:49]} dxe5 {[%emt 0:00:08]} 6. Qxd8+ {[%emt 0:00:07]} Kxd8 {[%emt 0:00:05]} 7. Bg5+ {[%emt 0:01:07]} f6 {[%emt 0:00:36]} 8. O-O-O+ {[%emt 0:00:09]} Ke8 {[%emt 0:08:47]} 9. Bd2 {[%emt 0:03:17]} Be6 {[%emt 0:00:53]} 10. e3 {[%emt 0:02:18]} Na6 {[%emt 0:04:36] The position is equal.} 11. Be2 {[%emt 0:06:59]} Nh6 {[%emt 0:01:59]} 12. h3 {[%emt 0:01:58]} Nf7 {[%emt 0:00:27]} 13. g4 {[%emt 0:02:21]} c6 {[%emt 0:21:18]} 14. Ne4 {[%emt 0:05:43]} b6 {[%emt 0:32:03][%cal Bb7b6,Bb6c5][%mdl 32]} 15. Bc3 {[%emt 0:05:19]} Nc5 {[%emt 0:02:49]} (15... Ke7 $11 {keeps the balance.}) 16. Nxc5 $16 {[%emt 0:04:06]} bxc5 {[%emt 0:00:09]} 17. Nd2 {[%emt 0:00:24] Black must now prevent Ne4. White is more active.} Bf8 {[%emt 0:06:05]} (17... Nd6 $142 18. h4 h5) 18. f4 {[%emt 0:05:27]} Be7 {[%emt 0:00:23]} 19. h4 {[%emt 0:06:13]} h5 {[%emt 0:12:51]} 20. gxh5 {[%emt 0:08:49]} (20. fxe5 $18 fxe5 21. g5) 20... gxh5 {[%emt 0:00:16]} 21. Rhg1 {[%emt 0:00:33]} Rd8 {[%emt 0:04:07]} 22. Bf3 {[%emt 0:02:58]} Kd7 {[%emt 0:00:41]} 23. Nb3+ {[%emt 0:03:46]} Kc8 {[%emt 0:01:04]} 24. Rxd8+ {[%emt 0:02:20]} Rxd8 {[%emt 0:00:24]} (24... Nxd8 $16 25. Rg7 (25. fxe5 fxe5 26. Bxe5 Rf8 $16) 25... Bd6 26. fxe5 (26. Rxa7 exf4 27. exf4 Rg8 $16) 26... fxe5 27. Rxa7 Rg8 28. Bxh5 Rg1+ 29. Kd2 Bxc4) 25. Na5 $18 {[%emt 0:01:13]} ({Don't take} 25. Bxc6 $6 exf4 26. exf4 Bd6 $16) 25... Nd6 $2 {[%emt 0:00:00] Weighted Error Value: White=0.09 (flawless) /Black=0.28 (precise) .  Mistake:       	White=1     	Black=4      Inaccurate:     	---       	Black=1      OK:         	White=8     	Black=4      Best:        	White=1     	---} (25... Rf8 26. Nxc6 Kd7) 1-0

[Event "WSTCC-50 2024"]
[Site "Krakow"]
[Date "2024.07.04"]
[Round "3.6"]
[White "Adams, Mark"]
[Black "Kawula, Andrzej"]
[Result "1/2-1/2"]
[ECO "C17"]
[WhiteElo "1951"]
[BlackElo "1847"]
[Annotator "NA RC"]
[PlyCount "53"]
[EventDate "2024.07.01"]
[EventType "team-tourn"]
[EventCountry "POL"]
[SourceTitle "playchess.com"]
[Source "ChessBase"]
[SourceQuality "1"]
[TimeControl "40/5400+30:1800+30"]

1. e4 {[%emt 0:00:18]} e6 {[%emt 0:00:14]} 2. d4 {[%emt 0:00:15]} d5 {[%emt 0:00:12]} 3. Nc3 {[%emt 0:00:05]} Bb4 {[%emt 0:00:25]} 4. e5 {[%emt 0:00:12]} c5 {[%emt 0:00:22]} 5. Bd2 {[%emt 0:00:28]} Ne7 {[%emt 0:03:45]} 6. a3 {[%emt 0:02:45]} Bxc3 {[%emt 0:07:27]} 7. Bxc3 {[%emt 0:00:21]} cxd4 {[%emt 0:00:27]} 8. Qxd4 {[%emt 0:01:30]} Nbc6 {[%emt 0:01:43]} 9. Qg4 {[%emt 0:11:22]} g6 {[%emt 0:25:29]} 10. Nf3 {[%emt 0:02:11]} h5 {[%emt 0:03:29]} 11. Qf4 {[%emt 0:02:55]} Nf5 {[%emt 0:00:52]} 12. O-O-O {[%emt 0:01:05]} Qb6 {[%emt 0:05:25]} 13. Ng5 {[%emt 0:11:21]} d4 {[%emt 0:09:26]} 14. Bd2 {[%emt 0:02:32]} Qc7 {[%emt 0:04:11]} 15. Bb5 {[%emt 0:11:18]} Bd7 {[%emt 0:00:17]} 16. Rhe1 {[%emt 0:05:31]} Rc8 {[%emt 0:05:26]} 17. Bd3 {[%emt 0:00:44]} Nce7 {[%emt 0:00:34]} 18. Ne4 {[%emt 0:07:49]} Nd5 {[%emt 0:02:11]} 19. Nf6+ {[%emt 0:02:20]} Nxf6 {[%emt 0:00:44]} 20. exf6 {[%emt 0:00:05]} Qxf4 {[%emt 0:04:13]} 21. Bxf4 {[%emt 0:00:05]} Bc6 {[%emt 0:00:40]} 22. f3 {[%emt 0:08:53]} h4 {[%emt 0:03:31]} 23. h3 {[%emt 0:08:48]} Rh5 {[%emt 0:01:22]} 24. Re5 {[%emt 0:03:37]} Rd8 {[%emt 0:02:35]} 25. Be4 {[%emt 0:06:12]} Bd5 {[%emt 0:04:55]} 26. Bxf5 {[%emt 0:00:36]} gxf5 {[%emt 0:01:08]} 27. Rxd4 {[%emt 0:00:17]} 1/2-1/2

[Event "WSTCC-50 2024"]
[Site "Krakow"]
[Date "2024.07.04"]
[Round "3.7"]
[White "Duncan, Chris R"]
[Black "Arkell, Keith C"]
[Result "1/2-1/2"]
[ECO "D96"]
[WhiteElo "2156"]
[BlackElo "2375"]
[Annotator "TA"]
[PlyCount "43"]
[EventDate "2024.07.01"]
[EventType "team-tourn"]
[EventCountry "POL"]
[SourceTitle "playchess.com"]
[Source "ChessBase"]
[SourceQuality "1"]
[TimeControl "40/5400+30:1800+30"]

{[%evp 17,43,51,60,56,61,11,15,19,16,8,11,11,13,7,10,2,12,12,17,9,19,14,12,13,12,11,18,6]} 1. Nf3 {[%emt 0:00:03]} d5 {[%emt 0:00:14]} 2. d4 {[%emt 0:00:10]} Nf6 {[%emt 0:00:22]} 3. c4 {[%emt 0:00:11]} c6 {[%emt 0:02:04]} 4. Nc3 {[%emt 0:00:11]} g6 {[%emt 0:00:44]} 5. cxd5 {[%emt 0:00:09]} cxd5 {[%emt 0:00:09]} 6. Bf4 {[%emt 0:00:10]} Nc6 {[%emt 0:00:47]} 7. e3 {[%emt 0:00:58]} a6 {[%emt 0:01:07]} 8. h3 {[%emt 0:01:39]} Bg7 {[%emt 0:01:11]} 9. Be2 {[%emt 0:01:08]} O-O {[%emt 0:02:08]} 10. O-O {[%emt 0:00:20]} e6 {[%emt 0:04:46]} 11. Ne5 {[%emt 0:01:23] White is more active.} ({White should try} 11. Rc1 $14) 11... Nxe5 $11 {[%emt 0:00:09] The position is equal.} 12. Bxe5 {[%emt 0:01:11]} Bd7 {[%emt 0:00:45]} 13. Qb3 {[%emt 0:17:33]} Bc6 {[%emt 0:00:12]} 14. Rfc1 {[%emt 0:01:07]} Qd7 {[%emt 0:01:38]} 15. a4 {[%emt 0:02:21]} Rfc8 {[%emt 0:02:55]} 16. Bd3 {[%emt 0:03:03]} Ne8 {[%emt 0:15:46]} 17. Bxg7 {[%emt 0:09:43]} Kxg7 {[%emt 0:00:07]} 18. Qa3 {[%emt 0:07:01]} Nd6 {[%emt 0:02:07]} 19. b3 {[%emt 0:00:57]} Rc7 {[%emt 0:10:22]} 20. Rc2 {[%emt 0:00:55]} Rac8 {[%emt 0:00:07]} 21. Rac1 {[%emt 0:00:32]} Qe7 {[%emt 0:02:28]} 22. Qb4 {[%emt 0:01:18] Weighted Error Value: White=0.07 (flawless) /Black=0.01 (flawless) .  Mistake:       	White=1     	---        OK:         	White=4     	Black=8} 1/2-1/2

[Event "WSTCC-50 2024"]
[Site "Krakow"]
[Date "2024.07.04"]
[Round "3.7"]
[White "Czyz, Andrzej"]
[Black "Barron, Michael"]
[Result "0-1"]
[ECO "A88"]
[WhiteElo "1921"]
[BlackElo "2046"]
[Annotator "NA RC"]
[PlyCount "96"]
[EventDate "2024.07.01"]
[EventType "team-tourn"]
[EventCountry "POL"]
[SourceTitle "playchess.com"]
[Source "ChessBase"]
[SourceQuality "1"]
[TimeControl "40/5400+30:1800+30"]

1. d4 {[%emt 0:00:04]} f5 {[%emt 0:00:02]} 2. c4 {[%emt 0:01:03]} Nf6 {[%emt 0:00:03]} 3. g3 {[%emt 0:00:33]} g6 {[%emt 0:00:06]} 4. Bg2 {[%emt 0:00:12]} Bg7 {[%emt 0:00:03]} 5. Nc3 {[%emt 0:00:19]} O-O {[%emt 0:00:08]} 6. Nf3 {[%emt 0:00:35]} d6 {[%emt 0:00:03]} 7. O-O {[%emt 0:00:53]} c6 {[%emt 0:00:03]} 8. d5 {[%emt 0:00:22]} e5 {[%emt 0:00:03]} 9. dxe6 {[%emt 0:00:38]} Bxe6 {[%emt 0:00:04]} 10. b3 {[%emt 0:00:20]} Na6 {[%emt 0:16:43]} 11. Bb2 {[%emt 0:01:49]} Qe7 {[%emt 0:04:55]} 12. Ng5 {[%emt 0:00:47]} Bd7 {[%emt 0:02:55]} 13. Ba3 {[%emt 0:04:51]} Nc5 {[%emt 0:03:19]} 14. Bxc5 {[%emt 0:02:05]} dxc5 {[%emt 0:00:03]} 15. Qc2 {[%emt 0:01:43]} h6 {[%emt 0:03:05]} 16. Nh3 {[%emt 0:01:58]} Ne4 {[%emt 0:04:39]} 17. Bxe4 {[%emt 0:01:18]} fxe4 {[%emt 0:00:02]} 18. Nf4 {[%emt 0:00:54]} Bf5 {[%emt 0:00:03]} 19. e3 {[%emt 0:01:07]} g5 {[%emt 0:00:04]} 20. Ng2 {[%emt 0:04:06]} Rad8 {[%emt 0:02:47]} 21. Rad1 {[%emt 0:04:25]} Rd3 {[%emt 0:00:49]} 22. Ne2 {[%emt 0:01:58]} Rfd8 {[%emt 0:00:30]} 23. Nc1 {[%emt 0:01:17]} R3d7 {[%emt 0:03:20]} 24. Rxd7 {[%emt 0:17:00]} Qxd7 {[%emt 0:00:36]} 25. g4 {[%emt 0:05:01]} Bxg4 {[%emt 0:03:21]} 26. Qxe4 {[%emt 0:00:24]} Re8 {[%emt 0:00:22]} 27. Qg6 {[%emt 0:05:36]} Bf3 {[%emt 0:01:20]} 28. Nd3 {[%emt 0:03:37]} Be4 {[%emt 0:00:12]} 29. Nxc5 {[%emt 0:00:21]} Bxg6 {[%emt 0:00:49]} 30. Nxd7 {[%emt 0:03:48]} b6 {[%emt 0:00:02]} 31. f4 {[%emt 0:01:40]} Rd8 {[%emt 0:04:37]} 32. Ne5 {[%emt 0:00:48]} Be4 {[%emt 0:00:03]} 33. h3 {[%emt 0:13:13]} Rd2 {[%emt 0:00:33]} 34. Rf2 {[%emt 0:00:36]} Rxf2 {[%emt 0:00:44]} 35. Kxf2 {[%emt 0:00:02]} Bxe5 {[%emt 0:00:18]} 36. fxe5 {[%emt 0:00:02]} Kf7 {[%emt 0:00:16]} 37. Ne1 {[%emt 0:01:14]} Ke6 {[%emt 0:00:03]} 38. Nf3 {[%emt 0:01:04]} c5 {[%emt 0:00:27]} 39. Kg3 Kf5 40. a3 {[%emt 0:06:29]} h5 {[%emt 0:00:53]} 41. e6 {[%emt 0:34:25]} Bxf3 {[%emt 0:31:44]} 42. Kxf3 {[%emt 0:00:03]} Kxe6 {[%emt 0:00:12]} 43. Ke4 {[%emt 0:00:50]} Kf6 {[%emt 0:00:03]} 44. Kd5 {[%emt 0:01:12]} g4 {[%emt 0:00:01]} 45. hxg4 {[%emt 0:01:39]} hxg4 {[%emt 0:00:02]} 46. b4 {[%emt 0:00:00]} g3 {[%emt 0:00:00]} 47. bxc5 {[%emt 0:00:00]} bxc5 {[%emt 0:00:00]} 48. Kxc5 {[%emt 0:00:00]} g2 {[%emt 0:00:00]} 0-1

[Event "WSTCC-50 2024"]
[Site "Krakow"]
[Date "2024.07.04"]
[Round "3.7"]
[White "Czernicki, Bogdan"]
[Black "Hughes, Anthony"]
[Result "1/2-1/2"]
[ECO "D02"]
[WhiteElo "1886"]
[BlackElo "1913"]
[Annotator "NA RC"]
[PlyCount "42"]
[EventDate "2024.07.01"]
[EventType "team-tourn"]
[EventCountry "POL"]
[SourceTitle "playchess.com"]
[Source "ChessBase"]
[SourceQuality "1"]
[TimeControl "40/5400+30:1800+30"]

1. d4 {[%emt 0:00:04]} d5 {[%emt 0:00:05]} 2. Nf3 {[%emt 0:00:16]} Nf6 {[%emt 0:00:07]} 3. Bf4 {[%emt 0:00:13]} e6 {[%emt 0:00:09]} 4. e3 {[%emt 0:00:13]} Bd6 {[%emt 0:00:08]} 5. Bg3 {[%emt 0:00:47]} O-O {[%emt 0:00:14]} 6. Nbd2 {[%emt 0:00:11]} c5 {[%emt 0:00:27]} 7. c3 {[%emt 0:00:30]} Qc7 {[%emt 0:00:20]} 8. Bxd6 {[%emt 0:00:23]} Qxd6 {[%emt 0:00:05]} 9. Ne5 {[%emt 0:00:28]} b6 {[%emt 0:02:15]} 10. f4 {[%emt 0:02:13]} Ba6 {[%emt 0:00:35]} 11. Bxa6 {[%emt 0:01:03]} Nxa6 {[%emt 0:00:05]} 12. O-O {[%emt 0:00:12]} Nc7 {[%emt 0:02:43]} 13. Qf3 {[%emt 0:00:21]} Nce8 {[%emt 0:11:27]} 14. g4 {[%emt 0:00:46]} Qc7 {[%emt 0:07:42]} 15. g5 {[%emt 0:01:10]} Nd7 {[%emt 0:00:36]} 16. Qh5 {[%emt 0:00:40]} f6 {[%emt 0:05:06]} 17. g6 {[%emt 0:02:11]} h6 {[%emt 0:04:16]} 18. Nf7 {[%emt 0:06:05]} f5 {[%emt 0:05:46]} 19. Rf3 {[%emt 0:07:35]} Ndf6 {[%emt 0:05:58]} 20. Qh4 {[%emt 0:04:50]} Nd6 {[%emt 0:02:48]} 21. Ne5 {[%emt 0:02:08]} Nde4 {[%emt 0:08:35]} 1/2-1/2

[Event "WSTCC-50 2024"]
[Site "Krakow"]
[Date "2024.07.04"]
[Round "3.8"]
[White "Davies, Nigel R"]
[Black "Townsend, M Paul"]
[Result "1-0"]
[ECO "D35"]
[WhiteElo "2325"]
[BlackElo "2147"]
[Annotator "TA"]
[PlyCount "41"]
[EventDate "2024.07.01"]
[EventType "team-tourn"]
[EventCountry "POL"]
[SourceTitle "playchess.com"]
[Source "ChessBase"]
[SourceQuality "1"]
[TimeControl "40/5400+30:1800+30"]

{[%evp 27,41,23,35,-4,0,0,35,21,48,24,56,69,65,57,803,804]} 1. c4 {[%emt 0:00:11]} e6 {[%emt 0:00:12]} 2. Nc3 {[%emt 0:00:10]} d5 {[%emt 0:00:24]} 3. d4 {[%emt 0:00:09]} Nf6 {[%emt 0:00:59]} 4. cxd5 {[%emt 0:00:13]} exd5 {[%emt 0:00:16]} 5. Bg5 {[%emt 0:00:23]} c6 {[%emt 0:02:23]} 6. e3 {[%emt 0:00:13]} Be7 {[%emt 0:02:01]} 7. Bd3 {[%emt 0:00:11]} Nbd7 {[%emt 0:00:22]} 8. Nf3 {[%emt 0:00:46]} h6 {[%emt 0:01:08]} 9. Bh4 {[%emt 0:01:13]} Nh5 {[%emt 0:01:41]} 10. Bxe7 {[%emt 0:00:17]} Qxe7 {[%emt 0:00:06]} 11. O-O {[%emt 0:00:10]} O-O {[%emt 0:00:38]} 12. Rb1 {[%emt 0:02:50]} a5 {[%emt 0:10:38]} 13. a3 {[%emt 0:01:46]} Nhf6 {[%emt 0:00:47]} 14. Qc2 {[%emt 0:01:31]} Re8 {[%emt 0:04:43]} 15. b4 {[%emt 0:03:51]} axb4 {[%emt 0:07:40]} 16. axb4 {[%emt 0:00:07]} Nb6 {[%emt 0:21:19]} 17. Ne2 {[%emt 0:05:56] White is slightly better.} Bd7 {[%emt 0:05:49]} 18. Rfc1 {[%emt 0:04:17]} Ne4 {[%emt 0:04:26]} 19. Ne5 {[%emt 0:05:15][%cal Ob4b5] Repels Nc4} Nd6 {[%emt 0:02:46]} 20. Nf4 {[%emt 0:14:29] Black must now prevent Bh7+. White is more active.} Rec8 $2 {[%emt 0:04:56][%mdl 8192] [#]} (20... g5 $14 21. Bh7+ Kg7 22. Nh5+ Kh8) 21. Bh7+ $1 {[%emt 0:00:47] Weighted Error Value: White=0.10 (very precise) /Black=0.24 (precise) .  Loses game:     	---       	Black=1      Inaccurate:     	---       	Black=3      OK:         	White=3     	Black=2      Strong:       	White=1     	---} 1-0

[Event "WSTCC-50 2024"]
[Site "Krakow"]
[Date "2024.07.04"]
[Round "3.8"]
[White "Findlay, Ian T."]
[Black "Wielosz, Jaroslaw"]
[Result "0-1"]
[ECO "C68"]
[WhiteElo "2118"]
[BlackElo "1920"]
[Annotator "NA RC"]
[PlyCount "116"]
[EventDate "2024.07.01"]
[EventType "team-tourn"]
[EventCountry "POL"]
[SourceTitle "playchess.com"]
[Source "ChessBase"]
[SourceQuality "1"]
[TimeControl "40/5400+30:1800+30"]

1. e4 {[%emt 0:00:04]} e5 {[%emt 0:00:11]} 2. Nf3 {[%emt 0:00:07]} Nc6 {[%emt 0:00:09]} 3. Bb5 {[%emt 0:00:08]} a6 {[%emt 0:00:23]} 4. Bxc6 {[%emt 0:00:11]} dxc6 {[%emt 0:00:11]} 5. O-O {[%emt 0:00:07]} Bg4 {[%emt 0:00:22]} 6. h3 {[%emt 0:00:08]} h5 {[%emt 0:00:17]} 7. d3 {[%emt 0:00:10]} Qf6 {[%emt 0:00:30]} 8. Be3 {[%emt 0:00:11]} Bxf3 {[%emt 0:00:23]} 9. Qxf3 {[%emt 0:00:04]} Qxf3 {[%emt 0:00:14]} 10. gxf3 {[%emt 0:00:05]} Bd6 {[%emt 0:00:42]} 11. Nd2 {[%emt 0:00:10]} Ne7 {[%emt 0:00:32]} 12. Nc4 {[%emt 0:00:53]} f6 {[%emt 0:18:36]} 13. f4 {[%emt 0:00:46]} exf4 {[%emt 0:04:25]} 14. Nxd6+ {[%emt 0:00:11]} cxd6 {[%emt 0:00:11]} 15. Bxf4 {[%emt 0:00:06]} Kd7 {[%emt 0:03:00]} 16. Kh2 {[%emt 0:01:58]} g5 {[%emt 0:08:25]} 17. Be3 {[%emt 0:02:50]} Rag8 {[%emt 0:04:54]} 18. f4 {[%emt 0:12:17]} g4 {[%emt 0:01:23]} 19. f5 {[%emt 0:00:24]} c5 {[%emt 0:07:24]} 20. d4 {[%emt 0:04:50]} gxh3 {[%emt 0:07:12]} 21. dxc5 {[%emt 0:11:17]} Rg2+ {[%emt 0:04:17]} 22. Kxh3 {[%emt 0:01:26]} Rhg8 {[%emt 0:00:48]} 23. Bf4 {[%emt 0:01:36]} d5 {[%emt 0:10:32]} 24. Rad1 {[%emt 0:06:21]} Rxc2 {[%emt 0:00:50]} 25. e5 {[%emt 0:14:10]} Nxf5 {[%emt 0:07:43]} 26. e6+ {[%emt 0:02:07]} Kc6 {[%emt 0:05:45]} 27. Rd2 {[%emt 0:01:40]} Rc4 {[%emt 0:01:17]} 28. Rg2 {[%emt 0:03:31]} Re8 {[%emt 0:01:56]} 29. Re2 {[%emt 0:04:26]} Nd4 {[%emt 0:00:49]} 30. Rd2 {[%emt 0:00:52]} Nxe6 {[%emt 0:01:20]} 31. Bh6 {[%emt 0:02:34]} Ng5+ {[%emt 0:01:30]} 32. Bxg5 {[%emt 0:00:08]} fxg5 {[%emt 0:00:18]} 33. Rf5 {[%emt 0:00:08]} Rh4+ {[%emt 0:01:36]} 34. Kg3 {[%emt 0:00:30]} Rg4+ {[%emt 0:00:20]} 35. Kf3 {[%emt 0:00:05]} Rf4+ {[%emt 0:01:25]} 36. Rxf4 {[%emt 0:00:12]} gxf4 {[%emt 0:00:08]} 37. Kxf4 {[%emt 0:00:16]} Kxc5 {[%emt 0:00:43]} 38. Rc2+ {[%emt 0:02:02]} Kd6 {[%emt 0:00:59]} 39. Rg2 {[%emt 0:00:39]} Rf8+ {[%emt 0:01:30]} 40. Ke3 {[%emt 0:00:09]} Re8+ {[%emt 0:01:10]} 41. Kd3 {[%emt 0:30:05]} Re4 {[%emt 0:32:46]} 42. Rg7 {[%emt 0:00:10]} b6 {[%emt 0:01:19]} 43. Rb7 {[%emt 0:02:01]} Kc6 {[%emt 0:00:44]} 44. Ra7 {[%emt 0:00:51]} a5 {[%emt 0:00:54]} 45. b3 {[%emt 0:00:38]} Rh4 {[%emt 0:00:44]} 46. Ra8 {[%emt 0:02:02]} Rh2 {[%emt 0:00:00]} 47. a3 {[%emt 0:00:00]} Rh3+ {[%emt 0:00:00]} 48. Kc2 {[%emt 0:00:00]} h4 {[%emt 0:00:00]} 49. Rc8+ {[%emt 0:00:00]} Kd6 {[%emt 0:00:00]} 50. Rd8+ {[%emt 0:00:00]} Kc5 {[%emt 0:00:00]} 51. Rc8+ {[%emt 0:00:00]} Kd4 {[%emt 0:00:00]} 52. Rc6 {[%emt 0:00:00]} Rh2+ {[%emt 0:00:00]} 53. Kc1 {[%emt 0:00:00]} b5 {[%emt 0:00:00]} 54. a4 {[%emt 0:00:00]} b4 {[%emt 0:00:00]} 55. Kb1 {[%emt 0:00:00]} Rh3 {[%emt 0:00:00]} 56. Kb2 {[%emt 0:00:00]} Rg3 {[%emt 0:00:00]} 57. Rh6 {[%emt 0:00:00]} h3 {[%emt 0:00:00]} 58. Rh4+ {[%emt 0:00:00]} Kc5 {[%emt 0:00:00]} 0-1

[Event "WSTCC-50 2024"]
[Site "Krakow"]
[Date "2024.07.04"]
[Round "3.8"]
[White "Thomas, Gary"]
[Black "Skorecki, Janusz"]
[Result "1-0"]
[ECO "C50"]
[WhiteElo "1865"]
[BlackElo "1729"]
[Annotator "NA RC"]
[PlyCount "51"]
[EventDate "2024.07.01"]
[EventType "team-tourn"]
[EventCountry "POL"]
[SourceTitle "playchess.com"]
[Source "ChessBase"]
[SourceQuality "1"]
[TimeControl "40/5400+30:1800+30"]

1. e4 {[%emt 0:00:07]} e5 {[%emt 0:00:23]} 2. Nf3 {[%emt 0:00:10]} Nc6 {[%emt 0:00:32]} 3. d4 {[%emt 0:00:20]} exd4 4. Bc4 {[%emt 0:00:16]} Be7 {[%emt 0:10:40]} 5. O-O {[%emt 0:01:03]} d6 {[%emt 0:01:56]} 6. Nxd4 {[%emt 0:08:22]} Nxd4 {[%emt 0:01:13]} 7. Qxd4 {[%emt 0:00:06]} Nf6 {[%emt 0:03:04]} 8. Nc3 {[%emt 0:02:50]} O-O {[%emt 0:01:17]} 9. h3 {[%emt 0:02:45]} Be6 {[%emt 0:11:52]} 10. Bb3 {[%emt 0:06:53]} Bxb3 {[%emt 0:05:56]} 11. axb3 {[%emt 0:00:10]} a6 {[%emt 0:00:25]} 12. Rd1 {[%emt 0:01:15]} Re8 {[%emt 0:02:46]} 13. Be3 {[%emt 0:04:58]} Qc8 {[%emt 0:04:36]} 14. Qc4 {[%emt 0:06:42]} Bd8 {[%emt 0:05:38]} 15. Ra5 {[%emt 0:17:20]} Qe6 16. f3 {[%emt 0:06:46]} c6 {[%emt 0:12:47]} 17. Raa1 {[%emt 0:11:09]} d5 {[%emt 0:01:29]} 18. Qb4 {[%emt 0:01:39]} dxe4 {[%emt 0:02:04]} 19. fxe4 {[%emt 0:04:52]} Nxe4 {[%emt 0:01:31]} 20. Re1 {[%emt 0:01:00]} Bh4 {[%emt 0:03:58]} 21. Re2 {[%emt 0:09:34]} Nxc3 {[%emt 0:08:53]} 22. bxc3 {[%emt 0:01:33]} Bg5 {[%emt 0:00:33]} 23. Rae1 {[%emt 0:00:34]} Bxe3+ {[%emt 0:04:21]} 24. Rxe3 {[%emt 0:00:07]} Qd7 {[%emt 0:01:40]} 25. Qxb7 {[%emt 0:01:30]} Qd8 {[%emt 0:02:47]} 26. Qxa8 {[%emt 0:00:22]} 1-0